bitfinex-derivatives/quotes_SOLF0:USTF0_20241029
["timestamp","ask_amount","ask_price","bid_price","bid_amount"]
[1730239425069,8.59061762,178.98,178.91,4.02]
[1730239425376,8.59061762,178.98,178.9,4.02]
[1730239425573,8.59061762,178.98,178.93,8.59061762]
[1730239425773,10.45287643,179.0,178.95,8.59061762]
[1730239426071,10.45287643,179.0,178.99,8.59061762]
[1730239426375,11.73908639,179.02,178.99,8.59061762]
[1730239426376,10.45228639,179.02,178.99,8.59061762]
[1730239426573,10.45228639,179.02,178.96,4.02]
[1730239426763,20.90012436,179.02,178.96,4.02]
[1730239426965,2.7942,178.99,178.96,12.61061762]
[1730239427164,20.90012436,179.02,178.89,1.39828178]
[1730239427378,20.90012436,179.02,178.8,2.7971]
[1730239427379,2.7953,178.92,178.8,2.7971]
[1730239427585,11.38591762,178.92,178.82,1.2685]
[1730239427874,10.44783797,178.96,178.91,8.59061762]
[1730239428075,2.7946,178.97,178.93,11.38551762]
[1730239429071,2.7952,178.93,178.89,2.7956]
[1730239429972,2.7952,178.93,178.89,11.38621762]
[1730239430369,2.7952,178.93,178.89,2.7956]
[1730239430581,2.7952,178.93,178.89,11.38621762]
[1730239432690,4.14957336,179.0,178.92,8.59061762]
[1730239432691,1.2855,179.0,178.92,8.59061762]
[1730239432875,1.2855,179.0,178.97,8.59061762]
[1730239433782,2.7941,178.99,178.95,2.7947]
[1730239433978,8.59061762,178.98,178.93,4.02]
[1730239434173,8.59061762,178.98,178.93,12.61061762]
[1730239434691,8.59061762,178.98,178.93,15.40551762]
[1730239435275,2.7951,178.93,178.9,2.7955]
[1730239435483,8.59061762,178.93,178.85,4.02]
[1730239435670,8.59061762,178.92,178.86,8.59061762]
[1730239435878,4.02,178.95,178.89,8.59061762]
[1730239436073,9.92491762,178.97,178.92,8.59061762]
[1730239436587,1.3343,178.97,178.93,8.59061762]
[1730239436977,2.7946,178.96,178.93,11.38561762]
[1730239438485,1.3343,178.97,178.89,4.02]
[1730239438694,8.59061762,178.93,178.89,4.02]
[1730239438991,8.59061762,178.93,178.88,11.38631762]
[1730239439287,2.7953,178.92,178.88,11.38631762]
[1730239439695,2.7953,178.92,178.88,8.59061762]
[1730239439884,2.7953,178.92,178.89,2.7957]
[1730239440389,2.7953,178.92,178.88,8.59061762]
[1730239440583,8.59061762,178.93,178.86,4.02]
[1730239440785,8.59061762,178.93,178.88,8.59061762]
[1730239441304,2.7955,178.91,178.88,8.59061762]
[1730239441790,2.7955,178.91,178.89,8.59061762]
[1730239443989,2.7955,178.91,178.88,11.38631762]
[1730239445694,8.59061762,178.9,178.74,5.596]
[1730239445996,8.59061762,178.89,178.83,8.59061762]
[1730239446187,2.7954,178.91,178.88,2.7957]
[1730239446993,2.7954,178.91,178.88,2.7958]
[1730239447992,1.3343,178.97,178.9,8.59061762]
[1730239448187,8.59061762,178.96,178.89,4.02]
[1730239448384,2.795,178.94,178.89,8.59061762]
[1730239448589,2.795,178.94,178.88,2.7957]
[1730239448590,8.59061762,178.93,178.88,4.02]
[1730239449098,8.59061762,178.93,178.82,229.75708998]
[1730239449099,8.59061762,178.93,178.85,4.02]
[1730239449289,8.59061762,178.93,178.87,8.59061762]
[1730239449690,9.87981762,178.93,178.87,8.59061762]
[1730239449999,2.7955,178.9,178.87,11.38651762]
[1730239450595,2.7955,178.9,178.85,4.02]
[1730239450596,8.59061762,178.91,178.85,4.02]
[1730239450794,8.59061762,178.88,178.82,238.3477076]
[1730239451093,8.59061762,178.9,178.84,8.59061762]
[1730239451488,4.02,178.91,178.85,8.59061762]
[1730239451686,8.59061762,178.9,178.85,11.38691762]
[1730239453902,2.796,178.87,178.85,11.38691762]
[1730239454599,2.796,178.87,178.85,2.7963]
[1730239455711,5.3092,178.93,178.88,2.7958]
[1730239455887,5.3092,178.93,178.88,11.38641762]
[1730239456710,2.7955,178.9,178.88,11.38641762]
[1730239456996,2.7955,178.9,178.88,8.59061762]
[1730239458499,2.7955,178.91,178.89,2.7956]
[1730239459205,2.7955,178.91,178.88,11.38641762]
[1730239459909,1.2892,178.93,178.88,11.38641762]
[1730239460095,2.7955,178.9,178.88,11.38641762]
[1730239461306,8.59061762,178.92,178.86,8.59061762]
[1730239461508,2.7958,178.89,178.85,12.61061762]
[1730239461909,2.7958,178.89,178.86,2.796]
[1730239462202,2.7958,178.89,178.86,8.59061762]
[1730239462410,2.7958,178.89,178.88,8.59061762]
[1730239463104,1.2892,178.93,178.88,8.59061762]
[1730239463408,2.7956,178.9,178.88,8.59061762]
[1730239466310,2.7959,178.88,178.82,229.75708998]
[1730239466605,8.59061762,178.91,178.83,4.02]
[1730239466818,5.3543,178.97,178.92,2.7952]
[1730239466999,13.94491762,178.97,178.92,2.7952]
[1730239467504,2.7948,178.95,178.92,2.7952]
[1730239467903,13.94491762,178.97,178.92,11.38581762]
[1730239468495,13.94491762,178.97,178.91,2.7953]
[1730239468496,2.795,178.94,178.91,2.7953]
[1730239469308,2.7955,178.91,178.88,6.8157]
[1730239470108,2.7955,178.91,178.88,15.40631762]
[1730239470305,2.7955,178.91,178.89,2.7957]
[1730239470507,2.7952,178.92,178.89,2.7957]
[1730239471304,2.7954,178.91,178.89,2.7957]
[1730239471607,2.7954,178.91,178.88,11.38631762]
[1730239472310,8.59061762,178.91,178.86,8.59061762]
[1730239473409,8.59061762,178.9,178.84,12.61061762]
[1730239473604,4.02,178.93,178.84,11.38701762]
[1730239473605,2.7961,178.87,178.84,11.38701762]
[1730239474101,2.7961,178.87,178.83,4.02]
[1730239474102,2.7956,178.9,178.87,2.7959]
[1730239474607,9.84201762,178.91,178.87,2.7959]
[1730239474812,2.5128,178.92,178.88,11.38641762]
[1730239474813,1.2851,178.92,178.88,11.38641762]
[1730239475617,2.7955,178.9,178.88,11.38641762]
[1730239480012,1.2851,178.92,178.88,8.59061762]
[1730239480223,15.17771762,178.97,178.91,8.59061762]
[1730239480519,1.2514,178.97,178.93,8.59061762]
[1730239480723,1.3187,179.03,178.96,8.59061762]
[1730239481310,8.59061762,179.0,178.93,4.02]
[1730239481522,8.59061762,179.02,178.96,8.59061762]
[1730239481916,8.59061762,179.02,178.96,11.38511762]
[1730239481917,2.7942,178.99,178.96,11.38511762]
[1730239483319,8.59061762,179.02,178.96,8.59061762]
[1730239483513,8.59061762,179.0,178.87,1.2811]
[1730239483714,8.59061762,179.02,178.96,8.59061762]
[1730239484013,2.7943,178.99,178.96,11.38511762]
[1730239484320,1.3187,179.03,178.98,8.59061762]
[1730239484909,2.794,179.0,178.96,8.59061762]
[1730239485915,2.794,179.0,178.96,11.38511762]
[1730239486518,2.7941,178.99,178.96,11.38511762]
[1730239487312,2.794,179.0,178.94,6.8148]
[1730239487513,8.59061762,179.02,178.95,8.59061762]
[1730239488122,8.59061762,179.01,178.94,12.61061762]
[1730239488719,2.7945,178.97,178.94,15.40541762]
[1730239490228,8.59061762,179.01,178.94,8.59061762]
[1730239490425,2.7947,178.95,178.94,8.59061762]
[1730239490929,8.59061762,179.0,178.94,8.59061762]
[1730239491123,8.59061762,179.0,178.93,4.02]
[1730239491124,8.59061762,179.0,178.95,8.59061762]
[1730239491520,2.7944,178.97,178.95,8.59061762]
[1730239492025,2.7944,178.97,178.94,2.7947]
[1730239500435,8.59061762,179.0,178.93,12.61061762]
[1730239500636,8.59061762,178.99,178.93,15.40551762]
[1730239501330,2.7946,178.96,178.93,15.40551762]
[1730239501530,1.2981,179.02,178.93,12.61061762]
[1730239501730,2.7938,179.01,178.98,8.59061762]
[1730239501941,1.293,179.04,179.0,8.59061762]
[1730239502136,1.293,179.04,179.0,11.38451762]
[1730239502339,9.88361762,179.04,178.98,4.02]
[1730239502641,8.59061762,179.02,178.98,4.02]
[1730239502847,2.7938,179.01,178.98,6.8142]
[1730239503229,8.59061762,179.02,178.98,6.8142]
[1730239503547,8.59061762,179.0,178.96,6.8146]
[1730239504544,2.7942,178.99,178.96,6.8146]
[1730239504937,8.59061762,179.02,178.98,2.7943]
[1730239505132,2.7939,179.01,178.98,2.7943]
[1730239505533,2.7939,179.01,178.99,2.7941]
[1730239506036,4.0863,179.04,179.01,2.7937]
[1730239506229,2.7933,179.04,179.02,8.59061762]
[1730239506435,8.59061762,179.05,179.0,8.59061762]
[1730239506738,2.7935,179.03,179.0,6.8138]
[1730239507545,8.59061762,179.04,178.98,4.02]
[1730239507735,8.59061762,179.04,178.97,12.61061762]
[1730239508434,2.7936,179.02,178.99,11.38471762]
[1730239508647,8.59061762,179.06,179.0,8.59061762]
[1730239509044,2.7935,179.03,179.0,11.38451762]
[1730239510449,2.7935,179.03,179.0,2.7939]
[1730239513745,2.7935,179.03,179.01,2.7938]
[1730239515354,2.7935,179.03,178.97,4.02]
[1730239515355,2.7939,179.01,178.97,4.02]
[1730239515545,11.64568138,179.08,178.98,8.59061762]
[1730239515747,8.59061762,179.04,178.98,8.59061762]
[1730239516155,2.7937,179.02,178.99,2.794]
[1730239516564,2.7934,179.04,179.01,11.38431762]
[1730239518354,2.7934,179.04,179.01,2.7937]
[1730239521668,2.7932,179.05,179.01,2.7937]
[1730239521880,8.59061762,179.06,179.01,2.7937]
[1730239522176,8.59061762,179.06,179.02,2.7936]
[1730239522379,2.7933,179.04,179.02,2.7936]
[1730239525278,2.7933,179.04,179.01,2.7937]
[1730239527087,8.59061762,179.03,178.94,238.70204661]
[1730239527283,9.92931762,179.03,178.97,8.59061762]
[1730239527876,2.794,179.0,178.98,2.7942]
[1730239529488,9.92931762,179.03,178.95,4.02]
[1730239529672,2.7943,178.98,178.96,8.59061762]
[1730239530381,8.59061762,179.01,178.96,8.59061762]
[1730239531387,2.7944,178.98,178.96,8.59061762]
[1730239532282,2.794,179.0,178.98,2.7942]
[1730239533778,2.6649,179.03,178.99,8.59061762]
[1730239533984,1.3387,179.03,178.98,8.59061762]
[1730239534381,8.59061762,179.02,178.98,8.59061762]
[1730239534781,2.794,179.0,178.98,8.59061762]
[1730239535288,8.59061762,179.02,178.98,8.59061762]
[1730239535488,2.794,179.0,178.98,8.59061762]
[1730239536589,2.794,179.0,178.98,11.38481762]
[1730239544197,8.59061762,179.06,178.99,8.59061762]
[1730239544896,2.7936,179.03,179.0,2.7939]
[1730239545115,8.59061762,179.06,179.0,2.7939]
[1730239545299,14.42011108,179.07,179.0,2.7939]
[1730239545300,2.7936,179.03,179.0,2.7939]
[1730239547295,2.7937,179.02,179.0,2.7939]
[1730239549407,2.7943,178.98,178.95,2.7946]
[1730239549622,4.02,179.03,178.97,8.59061762]
[1730239549904,4.02,179.03,178.98,8.59061762]
[1730239550210,2.794,179.0,178.98,8.59061762]
[1730239552012,2.7941,178.99,178.98,8.59061762]
[1730239552808,2.7941,178.99,178.97,11.38501762]
[1730239555810,2.7938,179.02,178.97,8.59061762]
[1730239556011,2.7938,179.02,178.94,4.02]
[1730239556012,8.59061762,179.01,178.95,8.59061762]
[1730239556805,8.59061762,178.99,178.94,4.02]
[1730239557203,8.59061762,178.99,178.95,8.59061762]
[1730239557506,2.7947,178.96,178.95,8.59061762]
[1730239560309,2.7947,178.96,178.94,4.02]
[1730239561512,2.7947,178.96,178.94,6.8149]
[1730239562819,2.7947,178.96,178.94,2.7949]
[1730239563020,1.307,179.01,178.95,8.59061762]
[1730239563204,8.59061762,178.99,178.93,8.59061762]
[1730239564000,2.7944,178.98,178.95,2.7947]
[1730239564717,2.7944,178.98,178.87,1.3053]
[1730239564718,8.59061762,178.96,178.91,4.02]
[1730239565022,8.59061762,178.96,178.9,8.59061762]
[1730239565217,2.7952,178.93,178.9,2.7954]
[1730239565510,8.59061762,178.97,178.91,8.59061762]
[1730239565720,11.37994796,178.97,178.91,8.59061762]
[1730239565917,8.59061762,178.97,178.91,8.59061762]
[1730239566513,8.59061762,178.97,178.91,11.38591762]
[1730239566514,2.7949,178.94,178.91,11.38591762]
[1730239574118,2.7949,178.94,178.91,8.59061762]
[1730239574323,2.7949,178.94,178.92,2.7952]
[1730239574721,8.59061762,178.97,178.92,2.7952]
[1730239574925,2.7948,178.95,178.93,2.795]
[1730239575417,2.795,178.94,178.91,8.59061762]
[1730239575621,2.795,178.94,178.92,2.7952]
[1730239576518,8.59061762,178.97,178.91,8.59061762]
[1730239576719,4.02,178.98,178.93,8.59061762]
[1730239576920,8.59061762,178.97,178.91,8.59061762]
[1730239577325,2.7948,178.95,178.92,2.7951]
[1730239577715,8.59061762,178.97,178.92,2.7951]
[1730239578019,2.7949,178.94,178.92,2.7951]
[1730239584425,8.59061762,178.94,178.86,60.4]
[1730239584631,8.59061762,178.94,178.88,6.8157]
[1730239584632,2.7955,178.91,178.88,6.8157]
[1730239584820,2.7955,178.91,178.88,4.02]
[1730239585833,2.7955,178.91,178.89,8.59061762]
[1730239586330,2.7955,178.91,178.89,11.38631762]
[1730239588436,8.59061762,178.95,178.89,8.59061762]
[1730239588729,2.7952,178.92,178.9,11.38611762]
[1730239589229,2.795,178.94,178.9,8.59061762]
[1730239589438,8.59061762,178.91,178.85,4.02]
[1730239589627,8.59061762,178.9,178.85,4.02]
[1730239589926,2.7959,178.88,178.85,6.8162]
[1730239590126,2.7959,178.88,178.85,2.7962]
[1730239590325,8.59061762,178.9,178.85,2.7962]
[1730239590528,2.796,178.87,178.85,2.7962]
[1730239592437,11.38651762,178.88,178.85,2.7962]
[1730239594332,2.796,178.87,178.85,2.7962]
[1730239595734,268.48742372,178.96,178.86,8.59061762]
[1730239595939,268.48742372,178.96,178.92,8.59061762]
[1730239595940,1.3412,178.96,178.92,8.59061762]
[1730239596332,1.3412,178.96,178.93,2.795]
[1730239596530,9.93181762,178.96,178.91,4.02]
[1730239598238,2.795,178.94,178.91,6.8152]
[1730239599340,2.795,178.94,178.91,15.40581762]
[1730239600328,2.7946,178.96,178.93,11.38551762]
[1730239600539,1.2656,178.98,178.93,8.59061762]
[1730239600840,8.59061762,178.99,178.94,8.59061762]
[1730239601040,2.7945,178.97,178.94,8.59061762]
[1730239601939,2.7945,178.97,178.94,11.38551762]
[1730239604138,2.7945,178.97,178.95,8.59061762]
[1730239604645,1.276,179.0,178.96,8.59061762]
[1730239604949,8.59061762,179.07,178.99,8.59061762]
[1730239605135,8.59061762,179.07,178.91,163.78216015]
[1730239605136,8.59061762,179.07,179.02,8.59061762]
[1730239605351,2.7929,179.07,179.03,8.59061762]
[1730239605543,3.8078,179.08,179.03,8.59061762]
[1730239606139,2.7933,179.05,179.03,8.59061762]
[1730239608662,2.7933,179.05,179.02,11.38421762]
[1730239609554,2.7933,179.04,179.02,8.59061762]
[1730239612453,8.59061762,179.07,179.02,8.59061762]
[1730239612657,8.59061762,179.05,178.99,4.02]
[1730239612843,8.59061762,179.05,178.99,12.61061762]
[1730239613352,2.7935,179.03,179.0,2.7939]
[1730239613557,2.7935,179.03,179.0,11.38451762]
[1730239613744,2.7935,179.03,179.02,8.59061762]
[1730239619048,2.7935,179.03,179.01,8.59061762]
[1730239620149,8.59061762,179.06,179.01,8.59061762]
[1730239620355,2.7935,179.03,179.01,8.59061762]
[1730239622757,2.7938,179.02,178.99,2.7941]
[1730239623063,2.7938,179.02,179.0,8.59061762]
[1730239623261,2.7938,179.02,178.99,15.40471762]
[1730239623560,8.59061762,179.05,178.99,8.59061762]
[1730239623768,2.7939,179.01,178.99,8.59061762]
[1730239625363,2.7939,179.01,178.99,11.38471762]
[1730239625960,3.8078,179.08,179.0,8.59061762]
[1730239626261,2.499,179.08,179.05,8.59061762]
[1730239626461,8.59061762,179.13,179.07,8.59061762]
[1730239626665,2.7926,179.09,179.07,8.59061762]
[1730239627267,2.7926,179.09,179.06,11.38361762]
[1730239627463,2.7931,179.06,179.04,4.02]
[1730239627662,2.7931,179.06,179.04,12.61061762]
[1730239631270,2.7925,179.1,179.05,11.38371762]
[1730239631469,8.59061762,179.12,179.07,8.59061762]
[1730239632464,2.7926,179.09,179.07,8.59061762]
[1730239632669,8.59061762,179.12,179.07,8.59061762]
[1730239634372,2.7927,179.08,179.07,8.59061762]
[1730239634576,1.2129,179.15,179.07,8.59061762]
[1730239634763,11.56058997,179.15,179.1,8.59061762]
[1730239634965,11.56058997,179.15,179.08,4.02]
[1730239634966,10.34768997,179.15,179.14,8.59061762]
[1730239635263,13.13928997,179.15,179.14,8.59061762]
[1730239635470,10.34768997,179.15,179.14,8.59061762]
[1730239635662,1.3326,179.16,179.14,8.59061762]
[1730239635853,2.7916,179.15,179.12,6.812]
[1730239636054,63.13848862,179.31,179.15,8.59061762]
[1730239636269,8.59061762,179.24,179.18,8.59061762]
[1730239636776,2.7909,179.2,179.18,8.59061762]
[1730239637067,8.59061762,179.24,179.18,8.59061762]
[1730239637479,8.59061762,179.25,179.2,8.59061762]
[1730239638370,2.7905,179.23,179.2,8.59061762]
[1730239638558,2.7905,179.23,179.16,4.02]
[1730239638559,12.45411762,179.27,179.21,8.59061762]
[1730239638759,14.35879828,179.3,179.23,8.59061762]
[1730239638959,8.59061762,179.29,179.23,8.59061762]
[1730239639182,2.5021,179.32,179.26,8.59061762]
[1730239639474,8.59061762,179.31,179.26,8.59061762]
[1730239639786,2.7895,179.29,179.26,8.59061762]
[1730239640164,2.7893,179.3,179.27,8.59061762]
[1730239640484,2.5021,179.32,179.28,8.59061762]
[1730239640656,1.2283,179.32,179.28,8.59061762]
[1730239640856,2.7893,179.31,179.28,8.59061762]
[1730239641175,180.28844913,179.33,179.28,8.59061762]
[1730239641467,2.4907,179.38,179.32,8.59061762]
[1730239641672,2.4907,179.38,179.35,8.59061762]
[1730239642262,2.7886,179.35,179.33,4.02]
[1730239645272,2.789,179.32,179.31,13.39941725]
[1730239645479,2.789,179.32,179.3,4.02]
[1730239645773,2.789,179.32,179.31,13.39941725]
[1730239645962,2.7887,179.34,179.31,13.39941725]
[1730239646674,17.41941725,179.42,179.31,13.39941725]
[1730239646978,5.315,179.42,179.33,13.39941725]
[1730239647372,2.7882,179.37,179.33,16.18821725]
[1730239648176,5.315,179.42,179.33,13.39941725]
[1730239648378,2.7884,179.36,179.33,13.39941725]
[1730239648776,13.39941725,179.41,179.2,5.5817]
[1730239648976,13.39941725,179.39,179.27,13.39941725]
[1730239649278,13.39941725,179.41,179.32,13.39941725]
[1730239649467,13.39941725,179.41,179.32,17.45941725]
[1730239649668,5.315,179.42,179.32,17.45941725]
[1730239649980,5.315,179.42,179.34,13.39941725]
[1730239649981,1.295,179.42,179.34,13.39941725]
[1730239650177,2.788,179.39,179.35,2.7884]
[1730239650577,1.295,179.42,179.34,13.39941725]
[1730239650982,2.7882,179.38,179.34,16.18801725]
[1730239651274,1.295,179.42,179.34,16.18801725]
[1730239652976,2.7882,179.38,179.34,16.18801725]
[1730239653504,1.295,179.42,179.32,13.39941725]
[1730239653782,1.295,179.42,179.32,17.45941725]
[1730239653973,1.295,179.42,179.35,13.39941725]
[1730239654167,2.788,179.38,179.35,13.39941725]
[1730239654369,1.295,179.42,179.35,13.39941725]
[1730239654782,1.295,179.42,179.32,18.73121725]
[1730239655179,13.39941725,179.41,179.32,13.39941725]
[1730239655372,13.39941725,179.41,179.33,4.06]
[1730239655573,2.7886,179.35,179.32,4.06]
[1730239656871,2.7888,179.33,179.32,4.06]
[1730239657274,17.45941725,179.41,179.32,4.06]
[1730239657588,2.7888,179.33,179.32,4.06]
[1730239658682,13.39941725,179.35,179.28,4.06]
[1730239658888,13.39941725,179.32,179.23,1.2718]
[1730239659091,13.39941725,179.32,179.24,4.06]
[1730239660175,2.7893,179.3,179.24,4.06]
[1730239660382,13.39941725,179.32,179.24,4.06]
[1730239660890,2.7899,179.26,179.24,4.06]
[1730239661090,13.39941725,179.32,179.24,4.06]
[1730239661472,2.7893,179.3,179.24,6.8502]
[1730239661677,13.39941725,179.32,179.24,6.8502]
[1730239661990,2.7893,179.3,179.24,6.8502]
[1730239662292,13.39941725,179.32,179.24,6.8502]
[1730239663385,2.7898,179.27,179.24,6.8502]
[1730239663583,13.39941725,179.32,179.24,4.06]
[1730239663796,5.3853,179.33,179.19,1.2949]
[1730239663797,2.79,179.25,179.19,14.69431725]
[1730239664088,13.39941725,179.3,179.2,4.06]
[1730239664277,13.39941725,179.3,179.2,2.7907]
[1730239664591,2.7903,179.24,179.2,4.06]
[1730239665000,2.7903,179.24,179.19,14.69431725]
[1730239665178,4.06,179.29,179.21,13.39941725]
[1730239665375,2.7899,179.27,179.21,13.39941725]
[1730239665987,2.7899,179.27,179.23,2.7902]
[1730239666494,2.79,179.26,179.23,2.7902]
[1730239668989,14.72471725,179.33,179.21,13.39941725]
[1730239669186,2.7897,179.28,179.24,16.18951725]
[1730239669384,4.06,179.32,179.24,16.18951725]
[1730239669884,2.7898,179.27,179.24,16.18951725]
[1730239671092,2.7899,179.26,179.24,16.18951725]
[1730239672601,2.7899,179.26,179.25,8.57476258]
[1730239677395,2.7899,179.26,179.24,11.36486258]
[1730239680306,2.7899,179.26,179.24,8.57476258]
[1730239680904,2.79,179.25,179.24,8.57476258]
[1730239682306,2.7904,179.23,179.21,4.06]
[1730239682704,8.57476258,179.25,179.2,8.57476258]
[1730239682907,8.57476258,179.22,179.19,8.57476258]
[1730239683105,2.7908,179.2,179.17,11.36596258]
[1730239684916,2.7907,179.21,179.18,2.7911]
[1730239685409,2.7904,179.23,179.21,2.7906]
[1730239685616,2.7904,179.23,179.22,8.57476258]
[1730239687226,2.7902,179.24,179.22,11.36526258]
[1730239687413,1.3437,179.25,179.22,8.57476258]
[1730239687722,8.57476258,179.27,179.22,8.57476258]
[1730239688518,2.7902,179.25,179.22,11.36516258]
[1730239690427,2.7902,179.25,179.22,2.7904]
[1730239690625,2.7902,179.25,179.22,11.36516258]
[1730239691128,2.7899,179.26,179.24,8.57476258]
[1730239692924,2.79,179.26,179.21,2.7907]
[1730239693125,8.57476258,179.26,179.21,11.36546258]
[1730239693433,1.3079,179.32,179.25,8.57476258]
[1730239693616,1.3079,179.32,179.28,8.57476258]
[1730239694021,2.7894,179.29,179.28,8.57476258]
[1730239695134,1.3079,179.32,179.28,8.57476258]
[1730239695331,2.7892,179.31,179.3,8.57476258]
[1730239695939,2.5146,179.37,179.3,8.57476258]
[1730239696237,2.7889,179.33,179.32,8.57476258]
[1730239697131,2.7891,179.32,179.3,8.57476258]
[1730239698123,2.7891,179.32,179.31,8.57476258]
[1730239698630,2.5146,179.37,179.31,8.57476258]
[1730239698937,1.2352,179.42,179.36,8.57476258]
[1730239699148,1.2352,179.42,179.38,8.57476258]
[1730239699451,2.7879,179.4,179.38,8.57476258]
[1730239699625,1.2352,179.42,179.35,4.06]
[1730239699824,9.80996258,179.42,179.36,8.57476258]
[1730239700025,2.7882,179.37,179.36,8.57476258]
[1730239701539,2.7882,179.37,179.26,237.00029629]
[1730239701540,2.7887,179.34,179.3,6.8492]
[1730239701836,2.7887,179.34,179.32,8.57476258]
[1730239704527,2.7887,179.34,179.3,20.25134506]
[1730239706741,10.34646286,179.4,179.32,13.40214506]
[1730239706933,4.06,179.41,179.32,13.40214506]
[1730239708243,13.40214506,179.39,179.26,237.00029629]
[1730239708546,2.6195,179.38,179.27,17.54214506]
[1730239708738,13.40214506,179.36,179.26,237.00029629]
[1730239708935,1.2943,179.35,179.27,4.14]
[1730239709135,2.7897,179.28,179.26,237.00029629]
[1730239709336,13.40214506,179.34,179.25,4.14]
[1730239709751,1.2943,179.35,179.25,4.14]
[1730239709947,13.40214506,179.34,179.25,4.14]
[1730239710749,2.7898,179.27,179.25,4.14]
[1730239710940,4.14,179.33,179.25,4.14]
[1730239712050,2.7898,179.27,179.25,4.14]
[1730239713052,14.48646286,179.33,179.25,4.14]
[1730239713248,4.14,179.33,179.25,6.93]
[1730239713553,4.14,179.33,179.25,4.14]
[1730239714253,2.7895,179.29,179.26,2.7898]
[1730239714747,2.7894,179.3,179.27,2.7897]
[1730239715254,1.2943,179.35,179.25,4.14]
[1730239715455,2.7894,179.3,179.26,2.7898]
[1730239717054,2.7894,179.29,179.26,2.7898]
[1730239717549,11.67849673,179.35,179.27,2.7897]
[1730239717756,2.7893,179.31,179.27,2.7897]
[1730239717954,11.67849673,179.35,179.27,2.7897]
[1730239719154,2.7894,179.29,179.27,2.7897]
[1730239719757,2.7894,179.29,179.26,2.7898]
[1730239721653,13.40214506,179.31,179.21,60.28]
[1730239721859,11.6841201,179.35,179.21,60.28]
[1730239721860,13.40214506,179.29,179.21,4.14]
[1730239722250,13.40214506,179.29,179.21,6.9306]
[1730239722251,2.7903,179.24,179.21,6.9306]
[1730239722757,2.7902,179.25,179.22,2.7905]
[1730239723250,12.98025227,179.3,179.22,2.7905]
[1730239723438,2.5856,179.3,179.24,2.7901]
[1730239723842,2.7898,179.27,179.24,2.7901]
[1730239724146,2.5856,179.3,179.23,2.7903]
[1730239724450,8.57727738,179.28,179.23,11.36757738]
[1730239724764,2.79,179.26,179.23,11.36757738]
[1730239727650,8.57727738,179.28,179.23,8.57727738]
[1730239727955,8.57727738,179.26,179.21,12.71727738]
[1730239728347,2.7902,179.25,179.23,8.57727738]
[1730239729359,2.79,179.26,179.23,11.36747738]
[1730239729654,11.16287738,179.3,179.24,8.57727738]
[1730239729852,2.7899,179.27,179.24,11.36737738]
[1730239730060,2.5856,179.3,179.26,8.57727738]
[1730239730262,2.5257,179.35,179.29,8.57727738]
[1730239730554,8.57727738,179.34,179.29,8.57727738]
[1730239731156,2.7891,179.31,179.29,8.57727738]
[1730239731557,8.57727738,179.34,179.29,8.57727738]
[1730239733462,2.7893,179.3,179.29,8.57727738]
[1730239736657,8.57727738,179.34,179.29,8.57727738]
[1730239737060,8.57727738,179.33,179.29,8.57727738]
[1730239738055,2.7892,179.31,179.29,8.57727738]
[1730239740149,8.57727738,179.34,179.29,8.57727738]
[1730239740356,2.7893,179.3,179.29,8.57727738]
[1730239740566,18.97538393,179.33,179.26,8.09781012]
[1730239740868,8.57727738,179.3,179.26,8.09781012]
[1730239741055,8.57727738,179.3,179.26,16.6750875]
[1730239741253,2.7897,179.28,179.26,16.6750875]
[1730239742075,2.7893,179.31,179.28,2.7895]
[1730239742264,2.7893,179.31,179.3,8.57727738]
[1730239744666,2.7893,179.31,179.28,11.36677738]
[1730239744865,2.789,179.32,179.3,8.57727738]
[1730239746267,8.57727738,179.32,179.26,3.99781012]
[1730239746451,8.57727738,179.32,179.26,12.5750875]
[1730239746857,2.7897,179.28,179.26,12.5750875]
[1730239747063,2.5257,179.35,179.27,8.57727738]
[1730239747277,2.5257,179.35,179.3,8.57727738]
[1730239747455,2.789,179.32,179.3,8.57727738]
[1730239748068,11.10297738,179.35,179.3,8.57727738]
[1730239748367,2.7891,179.31,179.3,8.57727738]